[Event "Titled Tuesday Blitz March 28 Early 2023"]
[White "Le, Tuan Minh"]
[Black "Dubov, Daniil"]
[WhiteFideId "12401153"]
[BlackFideId "24126055"]
[WhiteElo "2558"]
[BlackElo "2802"]
[Result "1/2-1/2"]
[Round "07"]
[TimeControl "180+2"]
[Date "2023.03.28"]
[WhiteClock "0:00:12"]
[BlackClock "0:00:17"]

1. d4 {[%clk 0:03:00]}  d5 {[%clk 0:03:00]} 2. Nf3 {[%clk 0:03:00]}  Nf6 {[%clk 0:02:59]} 3. Bf4 {[%clk 0:03:01]}  g6 {[%clk 0:02:57]} 4. e3 {[%clk 0:03:00]}  Bg7 {[%clk 0:02:57]} 5. h3 {[%clk 0:03:01]}  O-O {[%clk 0:02:57]} 6. c3 {[%clk 0:03:01]}  c5 {[%clk 0:02:56]} 7. Nbd2 {[%clk 0:03:01]}  b6 {[%clk 0:02:55]} 8. Bd3 {[%clk 0:02:56]}  Nc6 {[%clk 0:02:55]} 9. O-O {[%clk 0:02:53]}  Bb7 {[%clk 0:02:54]} 10. Ne5 {[%clk 0:02:49]}  Nd7 {[%clk 0:02:52]} 11. Nxd7 {[%clk 0:02:38]}  Qxd7 {[%clk 0:02:52]} 12. Nf3 {[%clk 0:02:38]}  Rfe8 {[%clk 0:02:45]} 13. Qe2 {[%clk 0:02:22]}  a6 {[%clk 0:02:16]} 14. Rfd1 {[%clk 0:02:21]}  e5 {[%clk 0:02:14]} 15. dxe5 {[%clk 0:02:22]}  Nxe5 {[%clk 0:02:15]} 16. Bxe5 {[%clk 0:02:16]}  Bxe5 {[%clk 0:02:16]} 17. Bc2 {[%clk 0:02:11]}  d4 {[%clk 0:02:01]} 18. cxd4 {[%clk 0:01:51]}  cxd4 {[%clk 0:02:00]} 19. Bb3 {[%clk 0:01:44]}  Bf6 {[%clk 0:01:53]} 20. Nxd4 {[%clk 0:01:26]}  Bxd4 {[%clk 0:01:52]} 21. Qc4 {[%clk 0:01:27]}  Re4 {[%clk 0:01:29]} 22. Rxd4 {[%clk 0:01:24]}  Rxd4 {[%clk 0:01:28]} 23. Qxd4 {[%clk 0:01:15]}  Qxd4 {[%clk 0:01:27]} 24. exd4 {[%clk 0:01:16]}  Rd8 {[%clk 0:01:20]} 25. Rd1 {[%clk 0:01:16]}  Kf8 {[%clk 0:01:16]} 26. f3 {[%clk 0:01:17]}  Ke7 {[%clk 0:01:08]} 27. Kf2 {[%clk 0:01:17]}  f6 {[%clk 0:01:08]} 28. Ke3 {[%clk 0:01:17]}  Kd6 {[%clk 0:01:08]} 29. h4 {[%clk 0:01:13]}  Re8+ {[%clk 0:01:03]} 30. Kd3 {[%clk 0:01:13]}  a5 {[%clk 0:01:01]} 31. Bc4 {[%clk 0:01:11]}  Bc6 {[%clk 0:00:59]} 32. a3 {[%clk 0:01:05]}  h6 {[%clk 0:00:53]} 33. Kd2 {[%clk 0:00:52]}  Re7 {[%clk 0:00:53]} 34. Re1 {[%clk 0:00:51]}  Rxe1 {[%clk 0:00:51]} 35. Kxe1 {[%clk 0:00:52]}  g5 {[%clk 0:00:45]} 36. hxg5 {[%clk 0:00:50]}  hxg5 {[%clk 0:00:45]} 37. Kf2 {[%clk 0:00:48]}  Bd7 {[%clk 0:00:42]} 38. Ke3 {[%clk 0:00:46]}  Bc8 {[%clk 0:00:41]} 39. Ke4 {[%clk 0:00:35]}  Bd7 {[%clk 0:00:37]} 40. g3 {[%clk 0:00:36]}  Bc8 {[%clk 0:00:35]} 41. f4 {[%clk 0:00:34]}  gxf4 {[%clk 0:00:31]} 42. Kxf4 {[%clk 0:00:32]}  Bd7 {[%clk 0:00:32]} 43. Bf7 {[%clk 0:00:23]}  Bc8 {[%clk 0:00:30]} 44. Ke4 {[%clk 0:00:23]}  Bd7 {[%clk 0:00:28]} 45. Kd3 {[%clk 0:00:22]}  Bb5+ {[%clk 0:00:27]} 46. Kc3 {[%clk 0:00:22]}  Be2 {[%clk 0:00:26]} 47. Bg8 {[%clk 0:00:18]}  Bf1 {[%clk 0:00:26]} 48. Bc4 {[%clk 0:00:18]}  Bg2 {[%clk 0:00:25]} 49. b4 {[%clk 0:00:17]}  axb4+ {[%clk 0:00:23]} 50. Kxb4 {[%clk 0:00:18]}  Bc6 {[%clk 0:00:23]} 51. Bb5 {[%clk 0:00:16]}  Bf3 {[%clk 0:00:21]} 52. Ba6 {[%clk 0:00:15]}  Bc6 {[%clk 0:00:19]} 53. Bc4 {[%clk 0:00:16]}  Bd7 {[%clk 0:00:19]} 54. Kc3 {[%clk 0:00:12]}  Bf5 {[%clk 0:00:17]} 55. Kd2 {[%clk 0:00:12]}  Bd7 {[%clk 0:00:17]} 56. Ke3 {[%clk 0:00:13]}  Bc8 {[%clk 0:00:17]} 57. Kf4 {[%clk 0:00:13]}  Bd7 {[%clk 0:00:18]} 58. Bb3 {[%clk 0:00:13]}  Bc8 {[%clk 0:00:18]} 59. Ke4 {[%clk 0:00:12]}  Bd7 {[%clk 0:00:18]} 60. Bc4 {[%clk 0:00:08]}  Bc8 {[%clk 0:00:18]} 61. Kf4 {[%clk 0:00:07]}  Bd7 {[%clk 0:00:18]} 62. g4 {[%clk 0:00:07]}  Bc8 {[%clk 0:00:17]} 63. g5 {[%clk 0:00:08]}  fxg5+ {[%clk 0:00:17]} 64. Kxg5 {[%clk 0:00:09]}  Bd7 {[%clk 0:00:17]} 65. Kf6 {[%clk 0:00:09]}  Bc8 {[%clk 0:00:17]} 66. Kf7 {[%clk 0:00:09]}  Bd7 {[%clk 0:00:17]} 67. Kf8 {[%clk 0:00:09]}  Bc6 {[%clk 0:00:17]} 68. Kf7 {[%clk 0:00:08]}  Bd5+ {[%clk 0:00:14]} 69. Bxd5 {[%clk 0:00:08]}  Kxd5 {[%clk 0:00:15]} 70. Ke7 {[%clk 0:00:09]}  Kxd4 {[%clk 0:00:16]} 71. Kd6 {[%clk 0:00:10]}  Kc4 {[%clk 0:00:16]} 72. Kc6 {[%clk 0:00:10]}  b5 {[%clk 0:00:16]} 73. Kb6 {[%clk 0:00:11]}  b4 {[%clk 0:00:16]} 74. axb4 {[%clk 0:00:12]}  Kxb4 {[%clk 0:00:17]} 1/2-1/2


[Site "https://www.chess.com"]

[Event "Titled Tuesday Blitz March 28 Early 2023"]
[White "So, Wesley"]
[Black "Gholami Orimi, Mahdi"]
[WhiteFideId "5202213"]
[BlackFideId "12558486"]
[WhiteElo "2739"]
[BlackElo "2363"]
[Result "0-1"]
[Round "07"]
[TimeControl "180+2"]
[Date "2023.03.28"]
[WhiteClock "0:00:02"]
[BlackClock "0:00:03"]

1. e4 {[%clk 0:03:00]}  e5 {[%clk 0:02:59]} 2. Nf3 {[%clk 0:02:59]}  Nc6 {[%clk 0:03:00]} 3. Bc4 {[%clk 0:02:59]}  Nf6 {[%clk 0:03:00]} 4. Ng5 {[%clk 0:02:57]}  d5 {[%clk 0:03:00]} 5. exd5 {[%clk 0:02:57]}  Na5 {[%clk 0:03:01]} 6. Bb5+ {[%clk 0:02:58]}  c6 {[%clk 0:03:02]} 7. dxc6 {[%clk 0:02:59]}  bxc6 {[%clk 0:03:02]} 8. Bd3 {[%clk 0:02:59]}  Nd5 {[%clk 0:03:00]} 9. Nf3 {[%clk 0:02:59]}  Bd6 {[%clk 0:02:58]} 10. Nc3 {[%clk 0:02:59]}  Nf4 {[%clk 0:02:56]} 11. O-O {[%clk 0:02:45]}  Nxd3 {[%clk 0:02:55]} 12. cxd3 {[%clk 0:02:45]}  O-O {[%clk 0:02:56]} 13. Re1 {[%clk 0:02:46]}  f6 {[%clk 0:02:54]} 14. Ne4 {[%clk 0:02:37]}  c5 {[%clk 0:02:46]} 15. b3 {[%clk 0:02:31]}  Ba6 {[%clk 0:02:37]} 16. Ba3 {[%clk 0:02:26]}  Bxd3 {[%clk 0:02:23]} 17. Nxc5 {[%clk 0:02:21]}  Bxc5 {[%clk 0:02:23]} 18. Bxc5 {[%clk 0:02:22]}  Rf7 {[%clk 0:02:23]} 19. Rc1 {[%clk 0:02:19]}  Rd7 {[%clk 0:02:15]} 20. b4 {[%clk 0:02:17]}  Nb7 {[%clk 0:02:06]} 21. Qb3+ {[%clk 0:02:13]}  Kh8 {[%clk 0:02:06]} 22. h3 {[%clk 0:02:03]}  Qe8 {[%clk 0:02:00]} 23. Re3 {[%clk 0:01:56]}  Bf5 {[%clk 0:01:34]} 24. d4 {[%clk 0:01:52]}  e4 {[%clk 0:01:34]} 25. Nd2 {[%clk 0:01:48]}  Be6 {[%clk 0:01:35]} 26. Qb2 {[%clk 0:01:37]}  f5 {[%clk 0:01:34]} 27. f3 {[%clk 0:01:34]}  Bd5 {[%clk 0:01:33]} 28. fxe4 {[%clk 0:01:30]}  fxe4 {[%clk 0:01:34]} 29. Nf1 {[%clk 0:01:26]}  Nd6 {[%clk 0:01:27]} 30. Bxd6 {[%clk 0:01:23]}  Rxd6 {[%clk 0:01:28]} 31. Rg3 {[%clk 0:01:19]}  Rc6 {[%clk 0:01:13]} 32. Rc5 {[%clk 0:01:17]}  Rd8 {[%clk 0:00:54]} 33. Ne3 {[%clk 0:01:15]}  Rcd6 {[%clk 0:00:47]} 34. Rg5 {[%clk 0:01:06]}  Bg8 {[%clk 0:00:36]} 35. d5 {[%clk 0:01:04]}  Rg6 {[%clk 0:00:35]} 36. Rxg6 {[%clk 0:01:01]}  Qxg6 {[%clk 0:00:36]} 37. Qe5 {[%clk 0:00:56]}  Re8 {[%clk 0:00:31]} 38. Qd4 {[%clk 0:00:53]}  Qg3 {[%clk 0:00:20]} 39. d6 {[%clk 0:00:51]}  Be6 {[%clk 0:00:19]} 40. Rc7 {[%clk 0:00:48]}  Rf8 {[%clk 0:00:18]} 41. Re7 {[%clk 0:00:37]}  Bxh3 {[%clk 0:00:17]} 42. d7 {[%clk 0:00:36]}  Qf2+ {[%clk 0:00:16]} 43. Kh1 {[%clk 0:00:32]}  Bxg2+ {[%clk 0:00:08]} 44. Kh2 {[%clk 0:00:32]}  Bf1+ {[%clk 0:00:06]} 45. Kh1 {[%clk 0:00:32]}  Qh4+ {[%clk 0:00:02]} 46. Kg1 {[%clk 0:00:33]}  Qxe7 {[%clk 0:00:03]} 47. Nxf1 {[%clk 0:00:31]}  Rd8 {[%clk 0:00:04]} 48. Qxa7 {[%clk 0:00:31]}  Qxd7 {[%clk 0:00:05]} 49. Qxd7 {[%clk 0:00:19]}  Rxd7 {[%clk 0:00:06]} 50. Ne3 {[%clk 0:00:20]}  Rd3 {[%clk 0:00:05]} 51. Kf2 {[%clk 0:00:14]}  Rd2+ {[%clk 0:00:05]} 52. Kg3 {[%clk 0:00:13]}  Rxa2 {[%clk 0:00:06]} 53. Kf4 {[%clk 0:00:14]}  Rb2 {[%clk 0:00:06]} 54. Nd5 {[%clk 0:00:13]}  Re2 {[%clk 0:00:06]} 55. b5 {[%clk 0:00:12]}  Re1 {[%clk 0:00:05]} 56. b6 {[%clk 0:00:11]}  h6 {[%clk 0:00:03]} 57. Nc3 {[%clk 0:00:10]}  Rf1+ {[%clk 0:00:02]} 58. Kxe4 {[%clk 0:00:10]}  Rf8 {[%clk 0:00:03]} 59. Kd5 {[%clk 0:00:08]}  Kh7 {[%clk 0:00:03]} 60. b7 {[%clk 0:00:05]}  h5 {[%clk 0:00:03]} 61. Ne4 {[%clk 0:00:03]}  h4 {[%clk 0:00:04]} 62. Kc6 {[%clk 0:00:02]}  Kg6 {[%clk 0:00:03]} 0-1


[Site "https://www.chess.com"]

[Event "Titled Tuesday Blitz March 28 Early 2023"]
[White "Vachier-Lagrave, Maxime"]
[Black "Dardha, Daniel"]
[WhiteFideId "623539"]
[BlackFideId "240990"]
[WhiteElo "2740"]
[BlackElo "2581"]
[Result "1-0"]
[Round "07"]
[TimeControl "180+2"]
[Date "2023.03.28"]
[WhiteClock "0:00:09"]
[BlackClock "0:00:02"]

1. c4 {[%clk 0:03:00]}  e5 {[%clk 0:02:48]} 2. Nc3 {[%clk 0:03:00]}  Nf6 {[%clk 0:02:47]} 3. Nf3 {[%clk 0:03:00]}  e4 {[%clk 0:02:47]} 4. Ng5 {[%clk 0:02:59]}  c6 {[%clk 0:02:48]} 5. Ngxe4 {[%clk 0:02:59]}  Nxe4 {[%clk 0:02:49]} 6. Nxe4 {[%clk 0:02:59]}  d5 {[%clk 0:02:50]} 7. cxd5 {[%clk 0:02:58]}  cxd5 {[%clk 0:02:51]} 8. Ng3 {[%clk 0:02:58]}  h5 {[%clk 0:02:51]} 9. e3 {[%clk 0:02:57]}  Nc6 {[%clk 0:02:50]} 10. d4 {[%clk 0:02:53]}  h4 {[%clk 0:02:50]} 11. Ne2 {[%clk 0:02:54]}  Bf5 {[%clk 0:02:49]} 12. Nc3 {[%clk 0:02:49]}  Bb4 {[%clk 0:02:46]} 13. Bd2 {[%clk 0:02:49]}  h3 {[%clk 0:02:39]} 14. gxh3 {[%clk 0:02:45]}  Qd7 {[%clk 0:02:39]} 15. Qb3 {[%clk 0:02:38]}  O-O-O {[%clk 0:02:33]} 16. a3 {[%clk 0:02:25]}  Bxc3 {[%clk 0:02:27]} 17. Bxc3 {[%clk 0:02:20]}  Bxh3 {[%clk 0:02:22]} 18. Bb5 {[%clk 0:01:51]}  a6 {[%clk 0:01:54]} 19. Bxc6 {[%clk 0:01:45]}  Qxc6 {[%clk 0:01:55]} 20. Rg1 {[%clk 0:01:35]}  Bf5 {[%clk 0:01:47]} 21. Rc1 {[%clk 0:01:29]}  Kb8 {[%clk 0:01:43]} 22. Qd1 {[%clk 0:01:28]}  Rc8 {[%clk 0:01:21]} 23. Qf3 {[%clk 0:01:27]}  Qf6 {[%clk 0:01:05]} 24. Qf4+ {[%clk 0:01:20]}  Ka8 {[%clk 0:01:03]} 25. Rg5 {[%clk 0:00:54]}  g6 {[%clk 0:00:46]} 26. h4 {[%clk 0:00:43]}  Rce8 {[%clk 0:00:41]} 27. f3 {[%clk 0:00:43]}  Rh7 {[%clk 0:00:25]} 28. Kd2 {[%clk 0:00:26]}  Qb6 {[%clk 0:00:21]} 29. h5 {[%clk 0:00:22]}  Qb5 {[%clk 0:00:19]} 30. Rxf5 {[%clk 0:00:17]}  gxf5 {[%clk 0:00:19]} 31. Qxf5 {[%clk 0:00:18]}  Rg7 {[%clk 0:00:17]} 32. Kc2 {[%clk 0:00:19]}  Rxe3 {[%clk 0:00:12]} 33. Kb1 {[%clk 0:00:19]}  Qd3+ {[%clk 0:00:08]} 34. Qxd3 {[%clk 0:00:19]}  Rxd3 {[%clk 0:00:09]} 35. Re1 {[%clk 0:00:19]}  Rxf3 {[%clk 0:00:07]} 36. Re5 {[%clk 0:00:19]}  Rh7 {[%clk 0:00:05]} 37. Rxd5 {[%clk 0:00:18]}  f5 {[%clk 0:00:06]} 38. Ba5 {[%clk 0:00:16]}  Ka7 {[%clk 0:00:04]} 39. Rd6 {[%clk 0:00:17]}  b5 {[%clk 0:00:03]} 40. h6 {[%clk 0:00:15]}  f4 {[%clk 0:00:04]} 41. Rf6 {[%clk 0:00:15]}  Rf1+ {[%clk 0:00:03]} 42. Ka2 {[%clk 0:00:15]}  f3 {[%clk 0:00:04]} 43. d5 {[%clk 0:00:16]}  Kb7 {[%clk 0:00:03]} 44. Rb6+ {[%clk 0:00:14]}  Kc8 {[%clk 0:00:03]} 45. Rf6 {[%clk 0:00:13]}  Rd1 {[%clk 0:00:02]} 46. Rxf3 {[%clk 0:00:10]}  Rxd5 {[%clk 0:00:03]} 47. Rf6 {[%clk 0:00:11]}  Rd4 {[%clk 0:00:02]} 48. Rxa6 {[%clk 0:00:10]}  Kb7 {[%clk 0:00:03]} 49. Rg6 {[%clk 0:00:10]}  Rd5 {[%clk 0:00:03]} 50. Bc3 {[%clk 0:00:11]}  Rh5 {[%clk 0:00:03]} 51. Bg7 {[%clk 0:00:11]}  Rh3 {[%clk 0:00:02]} 52. Rg5 {[%clk 0:00:09]}  Kb6 {[%clk 0:00:02]} 53. Rg6+ {[%clk 0:00:10]}  Kb7 {[%clk 0:00:03]} 54. Re6 {[%clk 0:00:09]}  Kc7 {[%clk 0:00:03]} 55. Kb1 {[%clk 0:00:08]}  Kb7 {[%clk 0:00:03]} 56. Kc2 {[%clk 0:00:09]}  Kc7 {[%clk 0:00:04]} 57. Kd2 {[%clk 0:00:09]}  Kb7 {[%clk 0:00:04]} 58. Ke2 {[%clk 0:00:09]}  Kc7 {[%clk 0:00:03]} 59. Rg6 {[%clk 0:00:09]}  Kd7 {[%clk 0:00:02]} 60. Kf2 {[%clk 0:00:10]}  Rh5 {[%clk 0:00:02]} 61. Kg3 {[%clk 0:00:10]}  Ke7 {[%clk 0:00:03]} 62. Rb6 {[%clk 0:00:09]}  Kf7 {[%clk 0:00:02]} 63. Kg4 {[%clk 0:00:09]}  Rd5 {[%clk 0:00:02]} 64. Kf4 {[%clk 0:00:09]}  Rc5 {[%clk 0:00:02]} 65. Ke4 {[%clk 0:00:10]}  Rh5 {[%clk 0:00:03]} 66. Kd3 {[%clk 0:00:09]}  Ke7 {[%clk 0:00:02]} 67. Kc3 {[%clk 0:00:09]}  Kd7 {[%clk 0:00:02]} 68. Kb4 {[%clk 0:00:10]}  Kc7 {[%clk 0:00:03]} 69. Rxb5 {[%clk 0:00:10]}  Rh3 {[%clk 0:00:02]} 70. Ka5 {[%clk 0:00:10]}  Kc6 {[%clk 0:00:03]} 71. Rb6+ {[%clk 0:00:09]}  Kc5 {[%clk 0:00:04]} 72. b4+ {[%clk 0:00:09]}  Kd5 {[%clk 0:00:04]} 73. a4 {[%clk 0:00:10]}  Kc4 {[%clk 0:00:03]} 74. Rc6+ {[%clk 0:00:10]}  Kd5 {[%clk 0:00:03]} 75. b5 {[%clk 0:00:10]}  Rb3 {[%clk 0:00:03]} 76. Kb6 {[%clk 0:00:10]}  Rd3 {[%clk 0:00:02]} 77. a5 {[%clk 0:00:10]}  Rf3 {[%clk 0:00:02]} 78. a6 {[%clk 0:00:10]}  Rf7 {[%clk 0:00:01]} 79. a7 {[%clk 0:00:10]}  Rxa7 {[%clk 0:00:01]} 80. Kxa7 {[%clk 0:00:09]}  Rxh6 {[%clk 0:00:02]} 81. Bxh6 {[%clk 0:00:09]} 1-0


[Site "https://www.chess.com"]

[Event "Titled Tuesday Blitz March 28 Early 2023"]
[White "Nakamura, Hikaru"]
[Black "Shimanov, Aleksandr"]
[WhiteFideId "2016192"]
[BlackFideId "4198603"]
[WhiteElo "2879"]
[BlackElo "2631"]
[Result "1-0"]
[Round "07"]
[TimeControl "180+2"]
[Date "2023.03.28"]
[WhiteClock "0:00:16"]
[BlackClock "0:00:02"]

1. Nf3 {[%clk 0:02:57]}  Nf6 {[%clk 0:02:56]} 2. g3 {[%clk 0:02:57]}  d5 {[%clk 0:02:51]} 3. Bg2 {[%clk 0:02:56]}  Nbd7 {[%clk 0:02:51]} 4. d4 {[%clk 0:02:51]}  e6 {[%clk 0:02:51]} 5. b3 {[%clk 0:02:49]}  b6 {[%clk 0:02:36]} 6. O-O {[%clk 0:02:47]}  Bb7 {[%clk 0:02:36]} 7. c4 {[%clk 0:02:45]}  Be7 {[%clk 0:02:37]} 8. Nc3 {[%clk 0:02:42]}  O-O {[%clk 0:02:36]} 9. Bb2 {[%clk 0:02:36]}  c5 {[%clk 0:02:35]} 10. cxd5 {[%clk 0:02:07]}  Nxd5 {[%clk 0:02:35]} 11. Na4 {[%clk 0:01:58]}  cxd4 {[%clk 0:02:24]} 12. Nxd4 {[%clk 0:01:57]}  Rc8 {[%clk 0:02:19]} 13. e4 {[%clk 0:01:50]}  N5f6 {[%clk 0:02:16]} 14. Qe2 {[%clk 0:01:42]}  a6 {[%clk 0:01:54]} 15. Rfd1 {[%clk 0:01:34]}  Qc7 {[%clk 0:01:48]} 16. e5 {[%clk 0:01:14]}  Nd5 {[%clk 0:01:45]} 17. Nf5 {[%clk 0:01:05]}  exf5 {[%clk 0:01:20]} 18. Bxd5 {[%clk 0:01:05]}  Bxd5 {[%clk 0:01:20]} 19. Rxd5 {[%clk 0:01:05]}  b5 {[%clk 0:01:21]} 20. Rad1 {[%clk 0:00:55]}  Rcd8 {[%clk 0:00:54]} 21. e6 {[%clk 0:00:46]}  Nf6 {[%clk 0:00:45]} 22. Bxf6 {[%clk 0:00:46]}  Bxf6 {[%clk 0:00:44]} 23. Nc5 {[%clk 0:00:45]}  Rxd5 {[%clk 0:00:32]} 24. Rxd5 {[%clk 0:00:46]}  Qc6 {[%clk 0:00:27]} 25. Rxf5 {[%clk 0:00:32]}  Re8 {[%clk 0:00:21]} 26. exf7+ {[%clk 0:00:27]}  Kxf7 {[%clk 0:00:21]} 27. Qf3 {[%clk 0:00:25]}  Qxf3 {[%clk 0:00:05]} 28. Rxf3 {[%clk 0:00:26]}  a5 {[%clk 0:00:05]} 29. Re3 {[%clk 0:00:24]}  Rc8 {[%clk 0:00:04]} 30. Ne4 {[%clk 0:00:23]}  Rc1+ {[%clk 0:00:03]} 31. Kg2 {[%clk 0:00:24]}  Rc2 {[%clk 0:00:04]} 32. a3 {[%clk 0:00:15]}  a4 {[%clk 0:00:03]} 33. Nd6+ {[%clk 0:00:15]}  Kg6 {[%clk 0:00:03]} 34. Nxb5 {[%clk 0:00:16]}  axb3 {[%clk 0:00:02]} 35. Rxb3 {[%clk 0:00:17]}  Ra2 {[%clk 0:00:02]} 36. Nc3 {[%clk 0:00:17]}  Ra1 {[%clk 0:00:02]} 37. Nd5 {[%clk 0:00:17]}  Bd4 {[%clk 0:00:01]} 38. Rd3 {[%clk 0:00:17]}  Bc5 {[%clk 0:00:02]} 39. Nf4+ {[%clk 0:00:15]}  Kf7 {[%clk 0:00:01]} 40. Rd7+ {[%clk 0:00:15]}  Ke8 {[%clk 0:00:01]} 41. Rxg7 {[%clk 0:00:15]}  Ra2 {[%clk 0:00:02]} 42. Nd3 {[%clk 0:00:15]}  Bxa3 {[%clk 0:00:02]} 43. Rxh7 {[%clk 0:00:16]} 1-0


[Site "https://www.chess.com"]

[Event "Titled Tuesday Blitz March 28 Early 2023"]
[White "Giri, Anish"]
[Black "Xu, Xiangyu"]
[WhiteFideId "24116068"]
[BlackFideId "8608288"]
[WhiteElo "2807"]
[BlackElo "2477"]
[Result "1-0"]
[Round "07"]
[TimeControl "180+2"]
[Date "2023.03.28"]
[WhiteClock "0:00:16"]
[BlackClock "0:00:02"]

1. e4 {[%clk 0:03:00]}  c5 {[%clk 0:02:59]} 2. Nf3 {[%clk 0:03:00]}  d6 {[%clk 0:03:00]} 3. d4 {[%clk 0:03:00]}  cxd4 {[%clk 0:03:01]} 4. Nxd4 {[%clk 0:03:01]}  Nf6 {[%clk 0:03:02]} 5. Nc3 {[%clk 0:03:01]}  a6 {[%clk 0:03:02]} 6. h3 {[%clk 0:03:00]}  e5 {[%clk 0:03:02]} 7. Nf3 {[%clk 0:03:01]}  Be7 {[%clk 0:02:58]} 8. g4 {[%clk 0:03:01]}  h6 {[%clk 0:02:58]} 9. Rg1 {[%clk 0:03:01]}  b5 {[%clk 0:02:54]} 10. g5 {[%clk 0:03:01]}  hxg5 {[%clk 0:02:54]} 11. Nxg5 {[%clk 0:03:01]}  Bb7 {[%clk 0:02:50]} 12. Be3 {[%clk 0:03:01]}  Nbd7 {[%clk 0:02:49]} 13. a4 {[%clk 0:02:47]}  b4 {[%clk 0:02:49]} 14. Bc4 {[%clk 0:02:47]}  bxc3 {[%clk 0:02:15]} 15. Bxf7+ {[%clk 0:02:46]}  Kf8 {[%clk 0:02:16]} 16. Bg6 {[%clk 0:02:26]}  cxb2 {[%clk 0:01:44]} 17. Ne6+ {[%clk 0:02:26]}  Kg8 {[%clk 0:01:43]} 18. Bf5 {[%clk 0:02:25]}  Bf8 {[%clk 0:01:22]} 19. Nxd8 {[%clk 0:02:23]}  bxa1=Q {[%clk 0:01:20]} 20. Qxa1 {[%clk 0:02:18]}  Rxd8 {[%clk 0:01:20]} 21. Qb2 {[%clk 0:01:53]}  Ba8 {[%clk 0:00:55]} 22. Qb3+ {[%clk 0:01:38]}  d5 {[%clk 0:00:55]} 23. Be6+ {[%clk 0:01:37]}  Kh7 {[%clk 0:00:55]} 24. exd5 {[%clk 0:01:37]}  Rb8 {[%clk 0:00:50]} 25. Qa2 {[%clk 0:00:51]}  Bb4+ {[%clk 0:00:45]} 26. Ke2 {[%clk 0:00:40]}  Rhc8 {[%clk 0:00:37]} 27. c4 {[%clk 0:00:40]}  e4 {[%clk 0:00:35]} 28. Qc2 {[%clk 0:00:37]}  Ne5 {[%clk 0:00:25]} 29. Bxc8 {[%clk 0:00:30]}  Rxc8 {[%clk 0:00:26]} 30. Qb3 {[%clk 0:00:18]}  Rxc4 {[%clk 0:00:26]} 31. Bf4 {[%clk 0:00:19]}  Bxd5 {[%clk 0:00:12]} 32. Bxe5 {[%clk 0:00:19]}  e3 {[%clk 0:00:10]} 33. Bxf6 {[%clk 0:00:18]}  exf2 {[%clk 0:00:07]} 34. Rxg7+ {[%clk 0:00:17]}  Kh8 {[%clk 0:00:07]} 35. Rg6+ {[%clk 0:00:16]}  Kh7 {[%clk 0:00:06]} 36. Rg7+ {[%clk 0:00:16]}  Kh8 {[%clk 0:00:06]} 37. Qd3 {[%clk 0:00:15]}  Re4+ {[%clk 0:00:01]} 38. Kxf2 {[%clk 0:00:15]}  Bc5+ {[%clk 0:00:02]} 39. Kf1 {[%clk 0:00:14]}  Bc4 {[%clk 0:00:02]} 40. Qxc4 {[%clk 0:00:14]}  Rxc4 {[%clk 0:00:03]} 41. Rg4+ {[%clk 0:00:15]}  Kh7 {[%clk 0:00:02]} 42. Rxc4 {[%clk 0:00:16]} 1-0


[Site "https://www.chess.com"]

[Event "Titled Tuesday Blitz March 28 Early 2023"]
[White "Bortnyk, Olexandr"]
[Black "Drygalov, Andrey"]
[WhiteFideId "14120828"]
[BlackFideId "24171735"]
[WhiteElo "2734"]
[BlackElo "2471"]
[Result "1-0"]
[Round "07"]
[TimeControl "180+2"]
[Date "2023.03.28"]
[WhiteClock "0:00:13"]
[BlackClock "0:00:04"]

1. d4 {[%clk 0:03:00]}  Nf6 {[%clk 0:02:59]} 2. Nc3 {[%clk 0:03:01]}  d5 {[%clk 0:02:59]} 3. Bf4 {[%clk 0:03:00]}  g6 {[%clk 0:03:00]} 4. e3 {[%clk 0:03:00]}  Bg7 {[%clk 0:03:00]} 5. h4 {[%clk 0:03:01]}  h5 {[%clk 0:02:59]} 6. Nf3 {[%clk 0:03:01]}  O-O {[%clk 0:03:00]} 7. Ne5 {[%clk 0:03:01]}  c5 {[%clk 0:03:00]} 8. Qd2 {[%clk 0:03:01]}  Nc6 {[%clk 0:03:00]} 9. f3 {[%clk 0:03:02]}  Bf5 {[%clk 0:02:50]} 10. Bb5 {[%clk 0:03:02]}  Nb4 {[%clk 0:02:31]} 11. Ba4 {[%clk 0:02:53]}  cxd4 {[%clk 0:02:20]} 12. exd4 {[%clk 0:02:54]}  Rc8 {[%clk 0:02:20]} 13. a3 {[%clk 0:02:52]}  Nc6 {[%clk 0:02:16]} 14. Bxc6 {[%clk 0:02:53]}  bxc6 {[%clk 0:02:16]} 15. Na4 {[%clk 0:02:54]}  Ne8 {[%clk 0:01:55]} 16. O-O-O {[%clk 0:02:47]}  f6 {[%clk 0:01:48]} 17. Nd3 {[%clk 0:02:47]}  Nd6 {[%clk 0:01:48]} 18. Rhe1 {[%clk 0:02:27]}  Nc4 {[%clk 0:01:44]} 19. Qc3 {[%clk 0:02:26]}  Re8 {[%clk 0:01:23]} 20. Nac5 {[%clk 0:02:16]}  e5 {[%clk 0:01:12]} 21. dxe5 {[%clk 0:01:55]}  fxe5 {[%clk 0:01:13]} 22. Nxe5 {[%clk 0:01:55]}  Qe7 {[%clk 0:01:02]} 23. Nxc4 {[%clk 0:01:42]}  Qxc5 {[%clk 0:00:40]} 24. Ne5 {[%clk 0:01:27]}  Qxc3 {[%clk 0:00:40]} 25. bxc3 {[%clk 0:01:28]}  Bf8 {[%clk 0:00:40]} 26. a4 {[%clk 0:01:24]}  Ba3+ {[%clk 0:00:31]} 27. Kd2 {[%clk 0:01:25]}  Be7 {[%clk 0:00:25]} 28. g3 {[%clk 0:01:09]}  Bf6 {[%clk 0:00:24]} 29. Nd3 {[%clk 0:01:07]}  Rxe1 {[%clk 0:00:11]} 30. Rxe1 {[%clk 0:01:08]}  c5 {[%clk 0:00:11]} 31. Bg5 {[%clk 0:01:06]}  Bg7 {[%clk 0:00:10]} 32. Re7 {[%clk 0:01:05]}  d4 {[%clk 0:00:07]} 33. c4 {[%clk 0:01:04]}  a6 {[%clk 0:00:07]} 34. Bf4 {[%clk 0:01:03]}  Bf8 {[%clk 0:00:07]} 35. Ra7 {[%clk 0:01:01]}  Rc6 {[%clk 0:00:07]} 36. a5 {[%clk 0:00:59]}  Re6 {[%clk 0:00:05]} 37. Rc7 {[%clk 0:00:58]}  Bxd3 {[%clk 0:00:03]} 38. cxd3 {[%clk 0:00:57]}  Be7 {[%clk 0:00:03]} 39. Rb7 {[%clk 0:00:55]}  Kf8 {[%clk 0:00:03]} 40. Rc7 {[%clk 0:00:45]}  Ke8 {[%clk 0:00:03]} 41. Kd1 {[%clk 0:00:35]}  Kd8 {[%clk 0:00:04]} 42. Rb7 {[%clk 0:00:33]}  Ke8 {[%clk 0:00:03]} 43. Bc1 {[%clk 0:00:25]}  Bd8 {[%clk 0:00:03]} 44. Bd2 {[%clk 0:00:23]}  Rc6 {[%clk 0:00:02]} 45. Rg7 {[%clk 0:00:20]}  Re6 {[%clk 0:00:02]} 46. Ra7 {[%clk 0:00:14]}  Rc6 {[%clk 0:00:01]} 47. Ra8 {[%clk 0:00:15]}  Kd7 {[%clk 0:00:01]} 48. Ke2 {[%clk 0:00:15]}  Be7 {[%clk 0:00:01]} 49. Ra7+ {[%clk 0:00:15]}  Ke6 {[%clk 0:00:01]} 50. Kf2 {[%clk 0:00:15]}  Bd6 {[%clk 0:00:02]} 51. Rg7 {[%clk 0:00:14]}  Kf6 {[%clk 0:00:02]} 52. Rb7 {[%clk 0:00:13]}  Ke6 {[%clk 0:00:03]} 53. Kg2 {[%clk 0:00:13]}  Bc7 {[%clk 0:00:03]} 54. g4 {[%clk 0:00:12]}  Kd7 {[%clk 0:00:03]} 55. Bf4 {[%clk 0:00:12]}  hxg4 {[%clk 0:00:01]} 56. fxg4 {[%clk 0:00:12]}  Kc8 {[%clk 0:00:02]} 57. Rxc7+ {[%clk 0:00:12]}  Rxc7 {[%clk 0:00:03]} 58. Bxc7 {[%clk 0:00:13]}  Kxc7 {[%clk 0:00:03]} 59. h5 {[%clk 0:00:13]}  Kd6 {[%clk 0:00:04]} 60. h6 {[%clk 0:00:13]} 1-0


[Site "https://www.chess.com"]